bitfinex/quotes_ETHUSD_20241019
["timestamp","ask_amount","ask_price","bid_price","bid_amount"]
[1729380202280,3.76804,2653.9,2653.7,1.59896048]
[1729380202458,3.76818,2653.8,2653.7,0.41636263]
[1729380202774,3.76818,2653.8,2653.7,1.59852179]
[1729380203658,3.76804,2653.9,2653.7,1.59852179]
[1729380203830,3.76797,2654.0,2653.8,1.57623811]
[1729380204033,3.76797,2654.0,2653.9,0.83312272]
[1729380215693,4.55757,2654.0,2653.9,0.83312272]
[1729380215889,4.55757,2654.0,2653.9,0.04505846]
[1729380216100,4.9510438,2654.0,2653.9,0.04505846]
[1729380216397,4.9510438,2654.0,2653.5,1.18215916]
[1729380216398,3.76832,2653.7,2653.6,0.78806426]
[1729380217774,3.76832,2653.7,2653.6,1.18215916]
[1729380218010,3.76832,2653.7,2653.6,1.94445916]
[1729380218906,3.76832,2653.7,2653.6,1.94436122]
[1729380219111,3.76817,2653.9,2653.6,0.7623]
[1729380219278,3.76817,2653.9,2653.8,0.78801756]
[1729380223124,3.76817,2653.9,2653.7,1.57676768]
[1729380223281,3.76817,2653.9,2653.7,1.18191969]
[1729380223481,3.76817,2653.9,2653.8,0.78796453]
[1729380225642,3.76817,2653.9,2653.8,1.18191969]
[1729380225793,3.76817,2653.9,2653.8,1.53401843]
[1729380226602,3.76817,2653.9,2653.8,2.33985671]
[1729380227033,3.76792,2654.0,2653.8,2.33985671]
[1729380227337,7.5359,2654.0,2653.9,0.78783152]
[1729380227699,7.5359,2654.0,2653.9,0.83136539]
[1729380227897,3.76792,2654.0,2653.9,0.83136539]
[1729380233698,3.76792,2654.0,2653.9,0.8315683]
[1729380234529,3.76792,2654.0,2653.9,0.04353387]
[1729380234932,3.76792,2654.0,2653.9,0.83164223]
[1729380235132,7.53559,2654.1,2653.9,0.52154258]
[1729380235334,3.76789,2654.0,2653.9,0.52154258]
[1729380235541,3.76789,2654.0,2653.9,1.70346227]
[1729380237141,3.76775,2654.1,2653.9,1.70346227]
[1729380237333,3.76775,2654.1,2654.0,0.7882467]
[1729380237539,3.76775,2654.1,2654.0,0.83022395]
[1729380238350,3.76775,2654.1,2654.0,1.34835583]
[1729380238535,3.76775,2654.1,2654.0,0.51010913]
[1729380238744,3.76775,2654.1,2654.0,0.55065256]
[1729380239203,8.124728,2654.3,2654.0,1.33901101]
[1729380239409,3.76764,2654.2,2654.1,0.78835845]
[1729380239870,3.76764,2654.2,2654.1,0.82889747]
[1729380240578,3.76764,2654.2,2654.1,0.04053902]
[1729380240874,3.76764,2654.2,2654.1,0.8289696]
[1729380241270,3.76764,2654.2,2654.1,0.04053902]
[1729380243358,3.76764,2654.2,2654.1,1.16949786]
[1729380243876,3.76764,2654.2,2654.1,2.35141755]
[1729380245244,3.76764,2654.2,2654.1,1.22245871]
[1729380246135,3.76764,2654.2,2654.1,0.04053902]
[1729380248166,3.76764,2654.2,2654.1,1.22245871]
[1729380248375,3.76764,2654.2,2654.1,0.04053902]
[1729380252283,3.76764,2654.2,2654.1,1.22245871]
[1729380252488,3.76764,2654.2,2654.1,0.04053902]
[1729380253373,3.76764,2654.2,2654.1,0.82877713]
[1729380262059,3.76764,2654.2,2654.1,0.827259]
[1729380262579,3.76764,2654.2,2654.1,0.03902089]
[1729380263419,3.76764,2654.2,2654.1,1.22094058]
[1729380267025,4.55144,2654.2,2654.1,1.22094058]
[1729380279516,4.55144,2654.2,2654.1,0.03902089]
[1729380282502,4.55144,2654.2,2654.1,1.61578857]
[1729380289050,3.76764,2654.2,2654.1,1.61578857]
[1729380299258,3.76764,2654.2,2654.1,2.01143421]
[1729380299467,3.76764,2654.2,2654.1,2.15208278]
[1729380300971,3.76764,2654.2,2654.1,2.15188027]
[1729380301372,3.76764,2654.2,2654.1,0.17966946]
[1729380302189,3.76764,2654.2,2654.1,2.1518995]
[1729380302980,3.76764,2654.2,2654.1,0.17966946]
[1729380303541,3.76764,2654.2,2654.1,0.03902089]
[1729380303782,3.76764,2654.2,2654.1,0.17958087]
[1729380304984,3.76764,2654.2,2654.1,0.17957351]
[1729380305190,3.76764,2654.2,2654.1,0.03902089]
[1729380305650,3.76764,2654.2,2654.1,0.17957246]
[1729380305984,3.76764,2654.2,2654.1,0.03902089]
[1729380308091,3.76764,2654.2,2654.1,1.61676988]
[1729380308388,3.76764,2654.2,2654.1,2.15175115]
[1729380309881,3.76764,2654.2,2654.1,0.17956491]
[1729380311397,3.76764,2654.2,2654.1,2.15025957]
[1729380312199,3.76764,2654.2,2654.1,0.17956491]
[1729380312363,3.76764,2654.2,2654.1,0.03902089]
[1729380312566,3.76764,2654.2,2654.1,1.61567853]
[1729380312778,3.76764,2654.2,2654.1,0.03902089]
[1729380313058,4.357148,2654.3,2654.1,2.1502017]
[1729380313276,4.357148,2654.3,2654.2,1.57659024]
[1729380313480,3.76749,2654.3,2654.2,1.57659024]
[1729380313696,3.76749,2654.3,2654.2,1.61174939]
[1729380314100,0.1302098,2654.5,2654.2,1.61174939]
[1729380314405,0.1302098,2654.5,2654.4,1.18226861]
[1729380314606,0.1302098,2654.5,2654.3,2.74589467]
[1729380314607,3.8973898,2654.5,2654.3,2.38569024]
[1729380314787,3.8973898,2654.5,2654.4,0.03515033]
[1729380315266,3.8973898,2654.5,2654.4,1.21690924]
[1729380315774,0.1302098,2654.5,2654.4,0.03515033]
[1729380315979,0.1302098,2654.5,2654.4,2.05078448]
[1729380318314,0.1302098,2654.5,2654.4,0.47419424]
[1729380319270,0.1302098,2654.5,2654.4,1.65537019]
[1729380321781,0.1302098,2654.5,2654.4,2.58312497]
[1729380322111,0.1302098,2654.5,2654.4,0.61450408]
[1729380322275,0.1302098,2654.5,2654.4,2.58223841]
[1729380323268,0.1302098,2654.5,2654.4,0.61450408]
[1729380323518,0.1302098,2654.5,2654.4,2.58110433]
[1729380324078,0.1302098,2654.5,2654.4,2.04766971]
[1729380324278,0.1302098,2654.5,2654.4,6.57698971]
[1729380324588,0.1302098,2654.5,2654.4,5.76906117]
[1729380324897,0.1302098,2654.5,2654.4,8.0526749]
[1729380325100,0.1302098,2654.5,2654.4,11.0526749]
[1729380325314,1.02903867,2654.9,2654.8,10.07876]
[1729380325480,1.02903867,2654.9,2654.8,13.17613352]
[1729380325678,1.02903867,2654.9,2654.8,13.21087672]
[1729380325882,0.79157712,2654.9,2654.8,16.61269201]
[1729380326119,3.76543,2655.8,2655.0,0.01888992]
[1729380326323,3.76521,2655.9,2655.3,3.76601]
[1729380326502,3.76521,2655.9,2655.4,1.24271959]
[1729380326703,3.76513,2656.0,2655.4,1.24271959]
[1729380326899,3.76513,2656.0,2655.5,0.7223]
[1729380327148,3.76513,2656.0,2655.6,0.78570639]
[1729380327314,3.76534,2655.8,2655.6,0.03418914]
[1729380327513,0.828124,2655.7,2655.4,0.78570639]
[1729380327749,4.5159,2655.9,2655.3,0.78570639]
[1729380327906,3.76562,2655.6,2655.5,0.0340739]
[1729380328106,3.76576,2655.5,2655.3,0.78570639]
[1729380328306,3.76591,2655.4,2655.3,0.78570639]
[1729380328502,3.76576,2655.5,2655.2,0.78570639]
[1729380328503,7.53163,2655.5,2655.2,0.78570639]
[1729380328707,3.766,2655.4,2655.2,0.78570639]
[1729380328956,3.76605,2655.3,2655.1,0.78570639]
[1729380329183,3.76605,2655.3,2655.0,1.17855959]
[1729380329184,7.5322,2655.3,2655.2,0.78570639]
[1729380329442,3.76605,2655.3,2655.1,0.78570639]
[1729380329807,3.76605,2655.3,2655.0,1.17855959]
[1729380329808,3.76621,2655.2,2655.0,0.78570639]
[1729380330006,3.76605,2655.3,2655.0,0.78570639]
[1729380330244,3.76605,2655.3,2654.9,1.53770639]
[1729380330444,3.76605,2655.3,2655.0,0.2716266]
[1729380331213,7.53221,2655.3,2655.0,0.2716266]
[1729380331413,7.53221,2655.3,2655.1,0.03416385]
[1729380331640,3.76605,2655.3,2655.1,0.03416385]
[1729380332732,7.53222,2655.3,2655.1,0.03416385]
[1729380332912,3.76605,2655.3,2655.1,0.03416385]
[1729380333115,3.76605,2655.3,2654.9,0.752]
[1729380333424,3.76605,2655.3,2655.0,0.03416825]
[1729380333621,7.5322,2655.3,2655.0,0.03416825]
[1729380333844,3.7662,2655.2,2655.0,0.03416825]
[1729380336348,3.76605,2655.3,2655.0,0.03416825]
[1729380339216,3.76584,2655.5,2655.1,0.7802]
[1729380339446,3.76584,2655.5,2655.1,0.81432938]
[1729380340312,7.53169,2655.5,2655.1,0.81432938]
[1729380340508,7.53169,2655.5,2655.1,1.46884092]
[1729380340914,3.76592,2655.4,2655.1,1.46884092]
[1729380342174,3.71584,2655.5,2655.1,1.46884092]
[1729380342373,7.48174,2655.5,2655.1,1.46884092]
[1729380342604,3.76593,2655.4,2655.1,1.46884092]
[1729380342760,3.76593,2655.4,2655.2,0.22545473]
[1729380342968,3.76593,2655.4,2655.3,0.03412057]
[1729380343190,3.76593,2655.4,2655.2,0.22545473]
[1729380343397,3.76593,2655.4,2655.3,0.03412057]
[1729380343565,3.76593,2655.4,2655.2,0.22545473]
[1729380343766,3.76593,2655.4,2655.3,0.03412057]
[1729380344098,3.76593,2655.4,2655.2,0.22545473]
[1729380344401,3.76593,2655.4,2655.3,0.03412057]
[1729380344609,3.76593,2655.4,2655.2,0.22545473]
[1729380344793,3.76593,2655.4,2655.3,0.03412057]
[1729380344960,3.76593,2655.4,2655.2,0.22545473]
[1729380345166,3.76593,2655.4,2655.3,0.03412057]
[1729380345393,3.76593,2655.4,2655.2,0.22545473]
[1729380345697,3.76593,2655.4,2655.3,0.03412057]
[1729380346078,3.76593,2655.4,2655.2,0.22545473]
[1729380346279,3.76591,2655.4,2655.3,0.03412057]
[1729380346482,3.76591,2655.4,2655.2,0.22545473]
[1729380346806,3.76591,2655.4,2655.3,0.03412057]
[1729380347006,3.76591,2655.4,2655.1,0.7802]
[1729380347215,3.76591,2655.4,2655.3,0.03412057]
[1729380347504,3.76591,2655.4,2655.1,0.7802]
[1729380347706,3.76591,2655.4,2655.3,0.03412057]
[1729380347871,3.76605,2655.3,2655.2,0.03412497]
[1729380348066,3.76605,2655.3,2655.1,0.7802]
[1729380348466,3.76605,2655.3,2655.1,1.06863689]
[1729380350811,3.76585,2655.5,2655.1,1.06863689]
[1729380351108,3.76597,2655.4,2655.1,1.06863689]
[1729380352511,3.76585,2655.5,2655.1,1.12622498]
[1729380353183,3.76585,2655.5,2655.1,1.06863689]
[1729380353384,3.76601,2655.4,2655.1,1.06863689]
[1729380354888,3.76607,2655.3,2655.1,1.06863689]
[1729380357742,3.76607,2655.3,2655.2,0.14030571]
[1729380359332,7.53175,2655.5,2655.2,0.14030571]
[1729380359534,3.76593,2655.4,2655.1,1.85434328]
[1729380359742,3.76593,2655.4,2655.2,0.14032394]
[1729380359951,3.76593,2655.4,2655.1,1.85434328]
[1729380360155,3.76593,2655.4,2655.2,0.92602576]
[1729380360323,3.76593,2655.4,2655.2,0.78570639]
[1729380360528,3.76593,2655.4,2655.3,0.92601409]
[1729380360743,3.76593,2655.4,2655.3,0.1403077]
[1729380360941,3.76593,2655.4,2655.3,0.14030622]
[1729380361157,3.76593,2655.4,2655.2,0.78570639]
[1729380361366,3.76593,2655.4,2655.3,0.31363687]
[1729380361657,4.56463,2655.4,2655.3,0.17332018]
[1729380362352,3.76593,2655.4,2655.3,0.17332018]
[1729380364455,3.76593,2655.4,2655.3,0.95902657]
[1729380364819,3.76593,2655.4,2655.3,0.17332018]
[1729380365020,3.76593,2655.4,2655.3,0.95902657]
[1729380365929,3.76577,2655.5,2655.3,0.92602309]
[1729380366119,3.76577,2655.5,2655.3,1.29362264]
[1729380366468,3.76577,2655.5,2655.3,0.50791625]
[1729380366469,3.76591,2655.4,2655.3,0.50791625]
[1729380366762,3.76591,2655.4,2655.3,0.64828658]
[1729380366950,3.76591,2655.4,2655.3,0.50791625]
[1729380367126,7.53161,2655.5,2655.3,0.50791625]
[1729380367526,3.76577,2655.5,2655.4,0.7862921]
[1729380369021,3.76577,2655.5,2655.4,1.17855959]
[1729380370064,7.53162,2655.5,2655.3,1.68647584]
[1729380370749,7.53162,2655.5,2655.3,1.54615914]
[1729380371451,3.76577,2655.5,2655.3,1.54615914]
[1729380372037,7.53163,2655.5,2655.3,1.54615914]
[1729380372925,3.76577,2655.5,2655.3,1.54615914]
[1729380375393,3.76577,2655.5,2655.3,0.36759955]
[1729380378892,3.76591,2655.4,2655.3,0.36759955]
[1729380379069,3.76591,2655.4,2655.3,0.50804032]
[1729380379395,3.76591,2655.4,2655.3,0.36759955]
[1729380380002,4.57145,2655.3,2655.2,1.57141278]
[1729380380656,0.8054,2655.3,2655.1,0.78773519]
[1729380380859,4.57173,2655.1,2655.0,1.18160278]
[1729380382912,3.76647,2655.0,2654.9,1.18160278]
[1729380385306,4.57187,2655.0,2654.9,1.18160278]
[1729380385503,4.57187,2655.0,2654.9,0.78722609]
[1729380385866,4.57187,2655.0,2654.8,0.78722609]
[1729380385867,4.57202,2654.9,2654.8,0.78722609]
[1729380386688,5.16148881,2654.9,2654.8,0.78722609]
[1729380388604,5.16148881,2654.9,2654.7,0.78722609]
[1729380388605,3.76676,2654.8,2654.7,0.78722609]
[1729380390621,4.59186,2654.8,2654.7,0.78722609]
[1729380391688,3.7669,2654.7,2654.6,0.78722609]
[1729380392321,5.48682288,2654.7,2654.5,0.78722609]
[1729380392616,5.48682288,2654.7,2654.3,0.78722609]
[1729380392617,3.76718,2654.5,2654.3,0.78722609]
[1729380392776,3.76732,2654.4,2654.3,0.78722609]
[1729380394707,3.76747,2654.3,2654.2,0.78722609]
[1729380395074,7.53426,2654.6,2654.3,0.7609]
[1729380395277,3.76732,2654.4,2654.3,1.94250278]
[1729380395496,7.53424,2654.6,2654.3,1.94250278]
[1729380395703,3.76722,2654.5,2654.4,1.17276082]
[1729380396221,7.53422,2654.6,2654.4,0.38679397]
[1729380396416,3.76718,2654.5,2654.4,0.38679397]
[1729380396816,3.76718,2654.5,2654.4,1.17267024]
[1729380396974,3.76718,2654.5,2654.4,0.38679397]
[1729380397175,3.76718,2654.5,2654.4,1.17266002]
[1729380397789,3.76708,2654.6,2654.4,1.17266002]
[1729380398484,3.76718,2654.5,2654.4,1.17266002]
[1729380400103,3.76708,2654.6,2654.4,1.17266002]
[1729380401729,3.76718,2654.5,2654.4,1.17266002]
[1729380402117,3.76708,2654.6,2654.4,1.17266002]
[1729380402728,3.76708,2654.6,2654.5,0.78586605]
[1729380402898,8.35879,2654.8,2654.5,0.78586605]
[1729380403099,8.35879,2654.8,2654.5,1.17843361]
[1729380403340,3.76692,2654.7,2654.5,1.17843361]
[1729380405009,3.76692,2654.7,2654.5,0.39256756]
[1729380407391,3.76692,2654.7,2654.4,1.93356002]
[1729380408509,3.76692,2654.7,2654.5,0.78586605]
[1729380408709,3.76692,2654.7,2654.4,1.93356002]
[1729380408934,3.76706,2654.6,2654.4,1.93356002]
[1729380409100,3.76706,2654.6,2654.5,0.78586605]
[1729380412749,3.76706,2654.6,2654.5,0.92628281]
[1729380413245,3.76706,2654.6,2654.5,0.78586605]
[1729380413432,3.76706,2654.6,2654.5,0.92629383]
[1729380413629,3.76706,2654.6,2654.5,0.78586605]
[1729380413869,3.76706,2654.6,2654.5,0.92630778]
[1729380417180,3.76706,2654.6,2654.5,0.14044173]
[1729380418177,3.76676,2654.8,2654.5,1.72615964]
[1729380418378,3.76658,2655.0,2654.7,0.78644308]
[1729380418578,3.76658,2655.0,2654.8,0.92694534]
[1729380418877,3.76658,2655.0,2654.8,0.78646898]
[1729380419545,3.76658,2655.0,2654.9,0.78646898]
[1729380419871,3.76662,2654.9,2654.8,0.78646898]
[1729380421664,4.51932,2654.9,2654.8,0.78646898]
[1729380421886,3.76676,2654.8,2654.7,0.78646898]
[1729380422096,4.51946,2654.8,2654.7,0.78646898]
[1729380422275,3.7669,2654.7,2654.6,1.17966462]
[1729380422591,4.51946,2654.8,2654.6,1.17966462]
[1729380422754,4.51946,2654.8,2654.7,0.78716587]
[1729380424300,3.7669,2654.7,2654.6,1.57141278]
[1729380424484,3.7669,2654.7,2654.6,1.71189943]
[1729380424796,3.7669,2654.7,2654.6,1.32175383]
[1729380425156,3.7669,2654.7,2654.6,0.14048665]
[1729380425394,3.7669,2654.7,2654.5,1.57141278]
[1729380426100,3.7669,2654.7,2654.6,1.18169569]
[1729380426393,3.7669,2654.7,2654.6,1.57141278]
[1729380426576,3.7669,2654.7,2654.6,1.71190195]
[1729380426786,3.7669,2654.7,2654.6,1.96838273]
[1729380427299,3.7669,2654.7,2654.6,2.10884965]
[1729380427901,3.7669,2654.7,2654.6,0.14046692]
[1729380428199,3.7669,2654.7,2654.6,1.71612618]
[1729380429976,4.51946,2654.8,2654.6,1.71612618]
[1729380430164,4.51946,2654.8,2654.7,1.18187919]
[1729380430165,8.28632,2654.8,2654.7,1.18187919]
[1729380430996,4.51946,2654.8,2654.7,1.18187919]
[1729380431202,0.7527,2654.8,2654.7,1.18187919]
[1729380431410,3.76662,2654.9,2654.7,0.47272431]
[1729380431711,3.76641,2655.1,2654.7,2.04838357]
[1729380431869,3.76641,2655.1,2655.0,0.78783356]
[1729380440466,3.7662,2655.2,2655.0,0.78783356]
[1729380440670,3.7662,2655.2,2655.1,0.78783356]
[1729380441440,3.76606,2655.3,2655.1,0.78783356]
[1729380441711,3.76606,2655.3,2655.2,0.78783356]
[1729380442508,3.76592,2655.4,2655.2,0.78783356]
[1729380443087,3.76605,2655.3,2655.2,0.78783356]
[1729380444076,3.76592,2655.4,2655.2,0.78783356]
[1729380444479,7.53193,2655.4,2655.2,0.78783356]
[1729380444677,3.76592,2655.4,2655.2,0.78783356]
[1729380444981,3.76605,2655.3,2655.2,0.78783356]
[1729380445473,3.76605,2655.3,2655.1,0.78783356]
[1729380445678,3.76605,2655.3,2655.2,0.78783356]
[1729380445877,3.76605,2655.3,2655.1,0.78783356]
[1729380449438,3.76619,2655.2,2655.1,0.78783356]
[1729380449803,7.53191,2655.4,2655.1,1.21947788]
[1729380450133,3.76592,2655.4,2655.1,1.21871432]
[1729380450333,7.53191,2655.4,2655.1,1.21871432]
[1729380450548,3.76616,2655.3,2655.1,1.21871432]
[1729380450693,4.59089,2655.2,2655.1,0.78707]
[1729380450898,3.76633,2655.1,2654.9,0.78707]
[1729380451137,3.76647,2655.0,2654.8,0.78707]
[1729380451349,4.59132,2654.9,2654.8,0.78707]
[1729380451505,3.76676,2654.8,2654.7,0.78707]
[1729380451925,3.76676,2654.8,2654.6,1.18175035]
[1729380452237,3.7669,2654.7,2654.6,1.18175035]
[1729380452536,3.76704,2654.6,2654.5,1.18175035]
[1729380456221,7.53392,2654.7,2654.5,1.18175035]
[1729380456436,3.7669,2654.7,2654.5,1.18175035]
[1729380456840,7.53387,2654.7,2654.6,0.78746698]
[1729380457146,7.5339,2654.7,2654.5,1.18175035]
[1729380457444,7.5339,2654.7,2654.6,0.78743631]
[1729380459619,3.7669,2654.7,2654.6,0.78743631]
[1729380461033,3.7669,2654.7,2654.5,0.78743631]
[1729380461034,3.76704,2654.6,2654.5,0.78743631]
[1729380461201,3.76732,2654.4,2654.3,1.18175035]
[1729380461569,3.76732,2654.4,2654.3,0.78757446]
[1729380462542,3.76732,2654.4,2654.2,0.78757446]
[1729380462747,3.76747,2654.3,2654.2,0.78757446]
[1729380462916,4.59217,2654.3,2654.2,0.78757446]
[1729380463118,3.76761,2654.2,2654.1,0.78757446]
[1729380463505,4.59231,2654.2,2654.1,0.78757446]
[1729380463752,4.59231,2654.2,2654.0,0.78757446]
[1729380463753,4.59245,2654.1,2654.0,0.78757446]
[1729380463902,5.428456,2654.1,2654.0,0.78757446]
[1729380464340,3.76803,2653.9,2653.8,0.78757446]
[1729380464549,3.76818,2653.8,2653.7,0.78757446]
[1729380465532,3.76832,2653.7,2653.6,0.78757446]
[1729380467153,3.76832,2653.7,2653.5,0.78757446]
[1729380467154,3.76846,2653.6,2653.5,0.78757446]
[1729380469047,4.59316,2653.6,2653.5,0.78757446]
[1729380469472,4.59316,2653.6,2653.4,0.78757446]
[1729380470336,3.7686,2653.5,2653.4,0.78757446]
[1729380472259,0.8247,2653.6,2653.4,0.78757446]
[1729380472569,7.53677,2653.7,2653.4,0.78757446]
[1729380472739,7.53673,2653.7,2653.4,0.78757446]
[1729380473688,3.76832,2653.7,2653.4,0.78757446]
[1729380473888,3.76849,2653.6,2653.4,0.78757446]
[1729380474782,3.76849,2653.6,2653.3,1.18175035]
[1729380474783,3.76849,2653.6,2653.3,0.78757446]
[1729380475165,3.76849,2653.6,2653.4,0.78757446]
[1729380475366,3.76849,2653.6,2653.3,0.78757446]
[1729380476249,3.76849,2653.6,2653.3,1.60227987]
[1729380478888,3.76862,2653.5,2653.3,1.60227987]
[1729380479200,3.76862,2653.5,2653.3,0.78757446]
[1729380479653,3.76862,2653.5,2653.3,0.92772062]
[1729380480588,3.76862,2653.5,2653.3,0.78757446]
[1729380480757,3.76862,2653.5,2653.3,0.92772062]
[1729380480964,3.76862,2653.5,2653.3,0.78757446]
[1729380481163,3.76862,2653.5,2653.2,0.92772062]
[1729380481464,3.76862,2653.5,2653.2,1.75645164]
[1729380481669,3.76862,2653.5,2653.2,1.75657899]
[1729380482074,3.76862,2653.5,2653.3,0.92784797]
[1729380482376,3.76862,2653.5,2653.2,1.75657899]
[1729380482805,3.76862,2653.5,2653.3,0.14027351]
[1729380483300,3.76889,2653.3,2653.1,0.92784797]
[1729380483500,3.76889,2653.3,2653.0,0.92784797]
[1729380483799,3.76903,2653.2,2653.1,0.92784797]
[1729380484131,3.76903,2653.2,2653.0,0.92784797]
[1729380484413,3.76903,2653.2,2653.1,0.14027351]
[1729380484764,3.76903,2653.2,2653.0,0.92784797]
[1729380484967,3.76903,2653.2,2653.1,0.14027351]
[1729380485167,3.76903,2653.2,2653.0,0.78757446]
[1729380485369,3.76903,2653.2,2653.0,0.92788323]
[1729380485670,3.76903,2653.2,2653.0,0.92788642]
[1729380487565,4.60014,2653.4,2653.0,0.92788642]
[1729380487804,8.36901,2653.4,2653.0,0.92788642]
[1729380488029,3.7689,2653.3,2653.0,0.92788642]
[1729380488396,3.7689,2653.3,2653.1,0.14031196]
[1729380488590,4.60014,2653.4,2653.1,0.14031196]
[1729380488807,3.76903,2653.2,2653.0,0.78757446]
[1729380489011,3.76903,2653.2,2653.1,0.14032938]
[1729380489594,4.60014,2653.4,2653.1,0.14032938]
[1729380489792,3.7689,2653.3,2653.2,0.14032938]
[1729380489994,3.7689,2653.3,2653.1,0.14032938]
[1729380490290,3.7689,2653.3,2653.0,0.78757446]
[1729380490291,3.7689,2653.3,2653.2,0.14032938]
[1729380492502,3.76903,2653.2,2653.0,0.78757446]
[1729380492702,3.76903,2653.2,2653.1,0.14055879]
[1729380494415,3.76903,2653.2,2653.1,0.92813325]
[1729380495203,3.76903,2653.2,2653.1,0.14055879]
[1729380495405,4.605952,2653.2,2653.1,0.14055879]
[1729380495611,5.390052,2653.2,2653.1,0.14055879]
[1729380495919,3.76945,2652.9,2652.8,0.78757446]
[1729380496124,3.7696,2652.8,2652.6,1.18175035]
[1729380496321,4.55384,2652.7,2652.6,1.18175035]
[1729380496712,4.55384,2652.7,2652.6,1.32234356]
[1729380497951,4.55384,2652.7,2652.6,1.35539071]
[1729380498945,5.386184,2652.7,2652.6,0.17364036]
[1729380499176,5.386184,2652.7,2652.6,0.96028442]
[1729380499716,5.386184,2652.7,2652.6,0.96020259]
[1729380500854,5.386184,2652.7,2652.6,0.81969121]
[1729380501333,5.386184,2652.7,2652.6,0.96022401]
[1729380501536,5.386184,2652.7,2652.6,0.81969121]
[1729380502426,5.386184,2652.7,2652.6,0.03304715]
[1729380502734,5.97618342,2652.7,2652.6,0.03304715]
[1729380504020,5.97618342,2652.7,2652.6,0.81969121]
[1729380505323,5.97618342,2652.7,2652.6,0.03304715]
[1729380505519,5.97618342,2652.7,2652.6,0.81969121]
[1729380507731,5.97618342,2652.7,2652.6,1.2147975]
[1729380508344,5.97618342,2652.7,2652.6,0.03304715]
[1729380508840,3.77002,2652.5,2652.4,0.7883455]
[1729380509072,4.74465534,2652.5,2652.4,0.82259387]
[1729380510479,4.74465534,2652.5,2652.4,0.03424837]
[1729380515543,0.97463534,2652.5,2652.2,0.7883455]
[1729380515763,3.77017,2652.4,2652.3,0.82259829]
[1729380516142,3.77017,2652.4,2652.3,0.03425279]
[1729380516757,3.77017,2652.4,2652.3,0.82259829]
[1729380522145,3.77017,2652.4,2652.3,0.96310061]
[1729380523545,3.77017,2652.4,2652.3,0.17475511]
[1729380523748,3.77017,2652.4,2652.3,0.9625063]
[1729380523970,3.77017,2652.4,2652.3,0.17475511]
[1729380525471,3.77017,2652.4,2652.3,1.35650546]
[1729380529177,3.77017,2652.4,2652.3,1.21600314]
[1729380529420,3.77017,2652.4,2652.3,1.35683759]
[1729380531513,3.77017,2652.4,2652.3,0.17508724]
[1729380532421,3.77017,2652.4,2652.3,1.7507465]
[1729380532712,3.77017,2652.4,2652.3,1.35782266]
[1729380533389,3.77017,2652.4,2652.3,0.17508724]
[1729380534503,3.77003,2652.5,2652.4,0.8117]
[1729380534810,3.77003,2652.5,2652.4,2.56266046]
[1729380535325,3.77003,2652.5,2652.4,0.1753012]
[1729380536479,3.77003,2652.5,2652.4,1.75096046]
[1729380538414,3.77003,2652.5,2652.4,0.1753012]
[1729380538913,3.77003,2652.5,2652.4,1.75421666]
[1729380539119,3.77003,2652.5,2652.4,0.1753012]
[1729380539426,3.77003,2652.5,2652.4,2.14638915]
[1729380540979,3.77003,2652.5,2652.4,2.15022506]
[1729380541422,3.77003,2652.5,2652.4,0.17540982]
[1729380543891,3.77003,2652.5,2652.4,0.03446675]
[1729380544189,3.77003,2652.5,2652.4,0.17548774]
[1729380547423,3.77003,2652.5,2652.4,0.14102099]
[1729380547605,3.77003,2652.5,2652.4,0.94392099]
[1729380547809,3.77003,2652.5,2652.4,3.31565262]
[1729380548018,3.77003,2652.5,2652.4,0.94392682]
[1729380549546,3.77003,2652.5,2652.4,3.31565262]
[1729380551093,3.77003,2652.5,2652.4,3.31626173]
[1729380551605,3.77003,2652.5,2652.4,3.17523491]
[1729380552134,3.77003,2652.5,2652.4,3.31626667]
[1729380552519,7.5399,2652.6,2652.4,3.31626667]
[1729380552705,7.5399,2652.6,2652.5,0.14103176]
[1729380553114,7.5399,2652.6,2652.5,2.51336667]
[1729380554249,3.76989,2652.6,2652.5,2.51336667]
[1729380554995,3.76989,2652.6,2652.5,2.51373596]
[1729380555221,3.76989,2652.6,2652.5,2.3727042]
[1729380555423,3.76989,2652.6,2652.5,2.51373301]
[1729380557810,3.76989,2652.6,2652.5,0.14102881]
[1729380557997,3.76989,2652.6,2652.5,2.51373301]
[1729380558306,3.76989,2652.6,2652.5,0.14102881]
[1729380558513,3.76989,2652.6,2652.5,2.51373301]
[1729380559132,3.76989,2652.6,2652.5,2.3727042]
[1729380559436,3.76989,2652.6,2652.5,2.51373164]
[1729380559796,3.76989,2652.6,2652.5,2.51383386]
[1729380560945,3.76989,2652.6,2652.5,0.14102744]
[1729380562918,3.76989,2652.6,2652.5,0.14102521]
[1729380563124,3.76989,2652.6,2652.4,3.17570642]
[1729380563440,3.76989,2652.6,2652.5,0.14102987]
[1729380570451,3.77002,2652.5,2652.4,2.3729644]
[1729380570662,3.77002,2652.5,2652.4,2.51402162]
[1729380574253,3.77002,2652.5,2652.4,2.51429022]
[1729380574785,3.77002,2652.5,2652.4,2.51429008]
[1729380576391,3.77002,2652.5,2652.4,2.51410744]
[1729380577476,3.77002,2652.5,2652.4,2.5142123]
[1729380577678,3.77002,2652.5,2652.4,0.14109608]
[1729380578369,3.77017,2652.4,2652.2,3.58781325]
[1729380578887,3.77017,2652.4,2652.3,0.1411052]
[1729380582241,3.77017,2652.4,2652.3,0.14111455]
[1729380584043,3.77014,2652.5,2652.3,0.14111455]
[1729380584246,3.77014,2652.5,2652.4,0.14111455]
[1729380592253,7.53991,2652.6,2652.4,0.14111455]
[1729380592409,7.53991,2652.6,2652.5,2.5152677]
[1729380592615,3.76989,2652.6,2652.5,0.14111455]
[1729380593116,3.76989,2652.6,2652.5,2.51521379]
[1729380593316,3.76989,2652.6,2652.5,0.14112135]
[1729380595957,3.7694,2653.0,2652.6,0.7701]
[1729380596121,3.7694,2653.0,2652.8,2.37321143]
[1729380596320,3.7694,2653.0,2652.9,2.51433278]
[1729380596635,3.7694,2653.0,2652.9,0.14112135]
[1729380597052,3.7694,2653.0,2652.8,2.37321143]
[1729380597657,3.7694,2653.0,2652.9,0.14094568]
[1729380599565,7.53816,2653.2,2652.9,0.14094568]
[1729380599858,3.76903,2653.2,2653.1,1.58061431]
[1729380600061,3.76903,2653.2,2653.1,0.14094568]
[1729380600985,3.76903,2653.2,2653.1,1.58052763]
[1729380601180,4.598703,2653.2,2653.1,1.58052763]